lending/lending_fUSD_20241120
["ID","MTS","AMOUNT","RATE_DAILY","PERIOD"]
[342771140,1732131055619,-2015.94061767,0.00034984,2]
[342771141,1732131055629,-217.27674637,0.00034984,2]
[342771142,1732131055638,-1039.0,0.00034984,2]
[342771143,1732131055647,-1552.48395838,0.00034984,2]
[342771144,1732131055656,-1410.78743005,0.00034984,2]
[342771145,1732131055666,-1318.5582474,0.00034984,2]
[342771146,1732131055675,-199.89261272,0.00034984,2]
[342771147,1732131055684,-150.0,0.00034984,2]
[342771148,1732131055693,-150.0,0.00034984,2]
[342771149,1732131055702,-200.0,0.00034984,2]
[342771150,1732131055712,-1800.0,0.00034984,2]
[342771151,1732131055721,-47220.86749548,0.00034984,2]
[342771152,1732131055731,-500.30122244,0.00034984,2]
[342771153,1732131055740,-196.0,0.00034984,30]
[342771154,1732131055750,-196.0,0.00034984,30]
[342771155,1732131055760,-1000.0,0.00034984,30]
[342771156,1732131055769,-1088.53870169,0.00034984,120]
[342771157,1732131055778,-435.17586997,0.00034984,120]
[342771158,1732131055787,-201.2,0.00034984,30]
[342771159,1732131055796,-201.6,0.00034984,30]
[342771160,1732131055806,-15983.73051589,0.00034984,2]
[342771161,1732131055815,-196.0,0.00034984,30]
[342771162,1732131055826,-437.1328517,0.00034984,120]
[342771163,1732131055835,-1698.91725343,0.00034984,30]
[342771164,1732131055844,-4586.97905451,0.00034984,30]
[342771165,1732131055854,-618.8341807,0.00034984,120]
[342771166,1732131055864,-3000.0,0.00034984,120]
[342771167,1732131055874,-551.65774778,0.00034984,5]
[342771168,1732131055883,-1949.3540147,0.00034984,5]
[342771169,1732131055892,-607.26312311,0.00034984,6]
[342771170,1732131055901,-3882.04,0.00034984,2]
[342771171,1732131055911,-5110.24359739,0.00034984,2]
[342771172,1732131055920,-958.73408169,0.00034984,5]
[342771173,1732131055930,-856.72089926,0.00034984,5]
[342771174,1732131055939,-7610.59387325,0.00034984,2]
[342771175,1732131055950,-6754.89856693,0.00034984,2]
[342771176,1732131055959,-581.115606,0.00034984,5]
[342771177,1732131055968,-9108.99267886,0.00034984,2]
[342771178,1732131055979,-3372.83077255,0.00034984,2]
[342771179,1732131055988,-22453.20464544,0.00034984,2]
[342771180,1732131055997,-12656.92030033,0.00034984,2]
[342771181,1732131056007,-11775.62340269,0.00034984,2]
[342771182,1732131056017,-5235.83253593,0.00034984,4]
[342771183,1732131056027,-28950.77092503,0.00034984,2]
[342771184,1732131056036,-8161.19912504,0.00034984,2]
[342771185,1732131056046,-6990.19733729,0.00034984,2]
[342771186,1732131056055,-10563.42665151,0.00034984,2]
[342771187,1732131056149,-364.0228377,0.00034984,2]
[342771188,1732131056196,-14741.967281,0.00034984,2]
[342771189,1732131056206,-1260.23151857,0.00034984,4]
[342771190,1732131056215,-18294.59676427,0.00034984,2]
[342771191,1732131056224,-6000.0,0.00034984,2]
[342771192,1732131056234,-2179.49314154,0.00034984,120]
[342771193,1732131056243,-214.71075215,0.00034984,5]
[342771194,1732131056252,-20986.66462362,0.00034984,2]
[342771195,1732131056261,-7233.13982969,0.00034984,2]
[342771196,1732131056270,-10032.55773203,0.00034984,2]
[342771197,1732131056280,-4938.64666955,0.00034984,2]
[342771198,1732131056290,-3629.14519006,0.00034984,2]
[342771199,1732131056299,-14558.54861593,0.00034984,2]
[342771200,1732131056310,-3898.9784967,0.00034984,2]
[342771201,1732131056322,-5108.57170574,0.00034984,4]
[342771202,1732131056331,-208.6414316,0.00034984,5]
[342771203,1732131056341,-11672.52267232,0.00034984,2]
[342771204,1732131056351,-13870.56443401,0.00034984,2]
[342771205,1732131056360,-5064.14970897,0.00034984,2]
[342771206,1732131056370,-7571.76869626,0.00034984,2]
[342771207,1732131056379,-1000.00158982,0.00034984,2]
[342771208,1732131056389,-541.72306113,0.00034984,7]
[342771209,1732131056398,-7905.16747179,0.00034984,2]
[342771210,1732131056408,-4190.08238114,0.00034984,5]
[342771211,1732131056418,-3629.42148475,0.00034984,2]
[342771212,1732131056427,-1862.50621669,0.0003499,2]
[342771213,1732131056437,-150.0,0.00035,2]
[342771214,1732131056447,-1572.29031452,0.00035067,120]
[342771215,1732131056456,-1364.98101366,0.00035067,120]
[342771216,1732131056466,-205.0,0.0003543,2]
[342771217,1732131056475,-150.0,0.00035472,2]
[342771218,1732131056484,-790.23,0.00035616,2]
[342771219,1732131056494,-1500.0,0.00035616,120]
[342771220,1732131056503,-1180.46251583,0.00036,2]
[342771221,1732131056513,-150.0,0.00036,2]
[342771222,1732131056522,-2879.75704523,0.00036,5]
[342771223,1732131056531,-1926.0,0.00036115,2]
[342771224,1732131056541,-1260.0,0.00036115,2]
[342771225,1732131056550,-920.0,0.00036115,2]
[342771226,1732131056560,-3747.0,0.00036115,2]
[342771227,1732131056571,-815.0,0.00036115,2]
[342771228,1732131056580,-3514.0,0.00036115,2]
[342771229,1732131056590,-266.442,0.00036115,2]
[342771230,1732131056599,-1256.0,0.00036115,2]
[342771231,1732131056609,-564.0,0.00036115,2]
[342771232,1732131056618,-150.0,0.00036115,2]
[342771233,1732131056627,-632.0,0.00036115,2]
[342771234,1732131056637,-5939.0,0.00036115,2]
[342771235,1732131056646,-13490.0,0.00036115,2]
[342771236,1732131056655,-150.0,0.00036337,2]
[342771237,1732131056665,-311.34,0.0003648,14]
[342771238,1732131056674,-1007.72,0.0003651,14]
[342771239,1732131056683,-1629.33,0.00036774,2]
[342771240,1732131056693,-16045.32716497,0.00036985,5]
[342771241,1732131056702,-200.0,0.00037,2]
[342771242,1732131056711,-250.0,0.00037,2]
[342771243,1732131056721,-250.0,0.00037,2]
[342771244,1732131056731,-23756.02338104,0.00037,2]
[342771245,1732131056741,-150.0,0.00037203,2]
[342771246,1732131056751,-1000.0,0.000373,15]
[342771247,1732131056760,-246341.0,0.00037476,5]
[342771248,1732131056770,-1000.0,0.000376,15]
[342771249,1732131056779,-538.60556484,0.00037767,2]
[342771250,1732131056788,-582.0330698,0.00037882,5]
[342771251,1732131056798,-1000.0,0.000379,15]
[342771252,1732131056807,-311.34,0.0003799,26]
[342771253,1732131056817,-1211.87186698,0.00038,5]
[342771254,1732131056829,-205.0,0.0003803,2]
[342771255,1732131056839,-150.0,0.00038068,2]
[342771256,1732131056849,-175754.67111092,0.00038221,120]
[342771257,1732131056858,-550.0525,0.00038232,30]
[342771258,1732131056868,-1007.72,0.0003824,27]
[342771259,1732131056877,-166.82955001,0.000384,11]
[342771260,1732131056887,-150.0,0.00038933,2]
[342771261,1732131056896,-1629.33,0.0003897,2]
[342771262,1732131056906,-300.0,0.00039,2]
[342771263,1732131056915,-300.0,0.00039,2]
[342771264,1732131056924,-1926.0,0.00039115,2]
[342771265,1732131056934,-1260.0,0.00039115,2]
[342771266,1732131056943,-920.0,0.00039115,2]
[342771267,1732131056953,-3747.0,0.00039115,2]
[342771268,1732131056963,-815.0,0.00039115,2]
[342771269,1732131056972,-3514.0,0.00039115,2]
[342771270,1732131056982,-1256.0,0.00039115,2]
[342771271,1732131056991,-564.0,0.00039115,2]
[342771272,1732131057001,-150.0,0.00039115,2]
[342771273,1732131057011,-632.0,0.00039115,2]
[342771274,1732131057020,-2116.938,0.00039115,2]
[342771275,1732131057029,-11434.193,0.00039115,2]
[342771276,1732131057039,-500.0,0.00039142,120]
[342771277,1732131057048,-311.34,0.000395,37]
[342771278,1732131057058,-506.0,0.0003954,7]
[342771279,1732131057068,-150.0,0.00039798,2]
[342771280,1732131057080,-148957.23947726,0.000398,2]
[342771281,1732131057090,-37406.7518682,0.000398,2]
[342771282,1732131057099,-1054.0,0.00039876,5]
[342771283,1732131057109,-1884.98,0.0003997,41]
[342771284,1732131057119,-50000.0,0.0004,20]
[342771285,1732131057130,-480436.26755854,0.0004,2]
[342771286,1732131057140,-20901.06444703,0.0004,7]
[342771287,1732131057149,-374.24408808,0.0004,2]
[342771288,1732131057162,-1299.22437934,0.0004,5]
[342771289,1732131057173,-918.88954612,0.0004,2]
[342771290,1732131057183,-500.0,0.0004,7]
[342771291,1732131057193,-508.69,0.0004,7]
[342771292,1732131057202,-28407.08296714,0.0004,2]
[342771293,1732131057211,-1000.0,0.0004,20]
[342771294,1732131057221,-3700.0,0.0004,60]
[342771295,1732131057230,-1132.14726969,0.00040096,5]
[342771296,1732131057239,-1145.96892492,0.00040096,5]
[342771297,1732131057249,-1120.01346988,0.00040096,5]
[342771298,1732131057258,-1000.9717156,0.00040096,5]
[342771299,1732131057268,-1013.87912701,0.00040096,5]
[342771300,1732131057278,-1014.45145985,0.0004018,5]
[342771301,1732131057287,-1090.31960714,0.0004018,5]
[342771302,1732131057296,-1087.25909136,0.0004018,5]
[342771303,1732131057306,-1039.02310709,0.0004018,5]
[342771304,1732131057315,-1000.0,0.00040199,2]
[342771305,1732131057327,-763.3,0.00040218,2]
[342771306,1732131057338,-182.36,0.00040218,2]
[342771307,1732131057348,-43203.44393664,0.0004048,10]
[342771308,1732131057357,-205.0,0.0004062,2]
[342771309,1732131057367,-150.0,0.00040663,2]
[342771310,1732131057377,-402.46,0.00040952,2]
[342771311,1732131057387,-190.91,0.00040952,2]
[342771312,1732131057397,-529.33,0.00040952,2]
[342771313,1732131057407,-50000.0,0.00041,21]
[342771314,1732131057417,-3323.0,0.00041,117]
[342771315,1732131057427,-350.0,0.00041,2]
[342771316,1732131057437,-350.0,0.00041,2]
[342771317,1732131057448,-311.34,0.0004101,49]
[342771318,1732131057458,-1000.0,0.00041096,13]
[342771319,1732131057468,-1000.0,0.00041096,13]
[342771320,1732131057478,-1000.0,0.00041096,13]
[342771321,1732131057487,-1000.0,0.00041096,13]
[342771322,1732131057497,-1000.0,0.00041096,13]
[342771323,1732131057507,-1000.0,0.00041096,13]
[342771324,1732131057517,-1000.0,0.00041096,13]
[342771325,1732131057527,-1000.0,0.00041096,13]
[342771326,1732131057537,-186.0,0.00041096,13]
[342771327,1732131057547,-157.0,0.00041096,2]
[342771328,1732131057557,-790.23,0.00041096,2]
[342771329,1732131057568,-200.0,0.000411,2]
[342771330,1732131057578,-325.30883909,0.000411,2]
[342771331,1732131057588,-197.67796363,0.000411,2]
[342771332,1732131057597,-500.0,0.000411,2]
[342771333,1732131057608,-1629.33,0.00041167,2]
[342771334,1732131057618,-1088.52709581,0.00041444,5]
[342771335,1732131057627,-1055.62089665,0.00041444,5]
[342771336,1732131057636,-150.0,0.00041528,2]
[342771337,1732131057646,-968.98,0.00041575,30]
[342771338,1732131057655,-968.98,0.00041658,30]
[342771339,1732131057665,-968.98,0.00041658,30]
[342771340,1732131057674,-156.5,0.000417,31]
[342771341,1732131057683,-156.5,0.000417,31]
[342771342,1732131057692,-968.98,0.0004174,30]
[342771343,1732131057702,-968.98,0.0004174,30]
[342771344,1732131057711,-968.98,0.0004174,30]
[342771345,1732131057720,-1937.96,0.00041779,30]
[342771346,1732131057729,-1054.0,0.00041975,30]
[342771347,1732131057739,-99000.0,0.0004198,120]
[342771348,1732131057748,-50000.0,0.00042,22]
[342771349,1732131057757,-8891.57587745,0.00042,2]
[342771350,1732131057767,-1709.94409017,0.00042,14]
[342771351,1732131057776,-50000.0,0.00042,120]
[342771352,1732131057785,-151.0,0.00042,14]
[342771353,1732131057795,-99000.0,0.000421,120]
[342771354,1732131057805,-151.0,0.000421,14]
[342771355,1732131057815,-151.0,0.000421,14]
[342771356,1732131057826,-927.64,0.000421,14]
[342771357,1732131057835,-927.64,0.000421,14]
[342771358,1732131057845,-151.0,0.000421,14]
[342771359,1732131057855,-151.0,0.000421,2]
[342771360,1732131057865,-151.0,0.000421,14]
[342771361,1732131057875,-1926.0,0.00042115,2]
[342771362,1732131057885,-1260.0,0.00042115,2]
[342771363,1732131057896,-920.0,0.00042115,2]
[342771364,1732131057906,-3747.0,0.00042115,2]
[342771365,1732131057915,-815.0,0.00042115,2]
[342771366,1732131057925,-3514.0,0.00042115,2]
[342771367,1732131057934,-1256.0,0.00042115,2]
[342771368,1732131057943,-564.0,0.00042115,2]
[342771369,1732131057953,-150.0,0.00042115,2]
[342771370,1732131057962,-632.0,0.00042115,2]
[342771371,1732131057971,-151.0,0.00042159,5]
[342771372,1732131057980,-2500.0,0.0004229,60]
[342771373,1732131057990,-1300.0,0.0004229,60]
[342771374,1732131058000,-500.0,0.0004229,60]
[342771375,1732131058009,-160.1,0.00042374,2]
[342771376,1732131058018,-150.0,0.00042394,2]
[342771377,1732131058028,-610.894322,0.0004252,61]
[342771378,1732131058038,-968.98,0.00042601,30]
[342771379,1732131058047,-1931.78,0.00042601,30]
[342771380,1732131058057,-968.98,0.00042601,30]
[342771381,1732131058067,-150.0,0.0004261,2]
[342771382,1732131058078,-150.0,0.00042666,2]
[342771383,1732131058089,-968.98,0.00042684,30]
[342771384,1732131058099,-968.98,0.00042684,30]
[342771385,1732131058108,-605.49,0.00042684,30]
[342771386,1732131058118,-968.98,0.00042684,30]
[342771387,1732131058127,-357.63,0.000427,30]
[342771388,1732131058138,-150.0,0.00042717,2]
[342771389,1732131058148,-968.98,0.00042755,30]
[342771390,1732131058159,-968.98,0.00042755,30]
[342771391,1732131058169,-1937.03,0.00042755,30]
[342771392,1732131058178,-968.98,0.00042755,30]
[342771393,1732131058188,-710.686,0.000428,20]
[342771394,1732131058197,-150.0,0.00042806,2]
[342771395,1732131058207,-150.0,0.00042809,2]
[342771396,1732131058216,-150.0,0.00042815,2]
[342771397,1732131058225,-2500.0,0.00042838,60]
[342771398,1732131058558,-1300.0,0.00042838,60]
[342771399,1732131058575,-150.0,0.00042842,2]
[342771400,1732131058585,-150.0,0.00042848,2]
[342771401,1732131058594,-1500.0,0.00042854,7]
[342771402,1732131058603,-968.98,0.00042859,30]
[342771403,1732131058613,-1500.0,0.00042869,7]
[342771404,1732131058622,-150.0,0.00042887,2]
[342771405,1732131058632,-443.149,0.0004289,100]
[342771406,1732131058641,-150.0,0.00042891,2]
[342771407,1732131058651,-66787.83847668,0.000429,60]
[342771408,1732131058660,-32030.65458284,0.000429,120]
[342771409,1732131058670,-968.98,0.00042909,30]
[342771410,1732131058679,-150.0,0.00042957,7]
[342771411,1732131058689,-1024.84320003,0.00042958,5]
[342771412,1732131058698,-1028.84829291,0.00042958,5]
[342771413,1732131058707,-1036.58440083,0.00042958,5]
[342771414,1732131058717,-1072.41381722,0.00042958,5]
[342771415,1732131058726,-150.0,0.00042967,2]
[342771416,1732131058735,-174.69460653,0.00042986,7]
[342771417,1732131058744,-150.0,0.00042992,7]
[342771418,1732131058753,-150.0,0.00042994,2]
[342771419,1732131058763,-150.0,0.00042997,7]
[342771420,1732131058774,-50000.0,0.00043,23]
[342771421,1732131058783,-400.0,0.00043,2]
[342771422,1732131058792,-400.0,0.00043,2]
[342771423,1732131058802,-60923.50812746,0.00043,120]
[342771424,1732131058811,-32383.16556146,0.00043,120]
[342771425,1732131058823,-11875.06766738,0.00043,120]
[342771426,1732131058831,-1500.0,0.00043008,7]
[342771427,1732131058841,-1500.0,0.00043019,7]
[342771428,1732131058851,-150.0,0.00043029,2]
[342771429,1732131058860,-3656.4,0.00043034,117]
[342771430,1732131058869,-150.0,0.00043041,7]
[342771431,1732131058879,-1500.0,0.00043042,7]
[342771432,1732131058889,-150.0,0.00043052,2]
[342771433,1732131058900,-150.0,0.00043056,2]
[342771434,1732131058909,-150.0,0.0004306,2]
[342771435,1732131058919,-150.0,0.00043061,2]
[342771436,1732131058928,-1500.0,0.00043066,7]
[342771437,1732131058938,-150.0,0.00043079,7]
[342771438,1732131058947,-1500.0,0.00043088,7]
[342771439,1732131058957,-150.0,0.00043112,2]
[342771440,1732131058966,-150.0,0.00043113,2]
[342771441,1732131058975,-150.0,0.00043117,2]
[342771442,1732131058984,-1500.0,0.00043129,7]
[342771443,1732131058994,-150.0,0.00043132,2]
[342771444,1732131059003,-150.0,0.00043134,2]
[342771445,1732131059012,-25831.85679404,0.00043143,30]
[342771446,1732131059022,-150.0,0.00043145,2]
[342771447,1732131059031,-150.0,0.00043145,7]
[342771448,1732131059040,-150.0,0.00043146,2]
[342771449,1732131059050,-150.0,0.00043149,2]
[342771450,1732131059059,-273.91,0.00043151,2]
[342771451,1732131059070,-150.0,0.00043151,2]
[342771452,1732131059083,-1500.0,0.00043151,7]
[342771453,1732131059093,-150.0,0.00043178,2]
[342771454,1732131059102,-150.0,0.00043187,2]
[342771455,1732131059112,-150.0,0.00043187,2]
[342771456,1732131059123,-150.0,0.00043187,2]
[342771457,1732131059132,-150.0,0.00043187,2]
[342771458,1732131059141,-150.0,0.00043192,2]
[342771459,1732131059150,-150.0,0.00043208,2]
[342771460,1732131059161,-205.0,0.0004322,2]
[342771461,1732131059171,-150.0,0.00043224,2]
[342771462,1732131059180,-1500.0,0.00043224,7]
[342771463,1732131059190,-150.0,0.00043228,2]
[342771464,1732131059199,-150.0,0.00043228,2]
[342771465,1732131059209,-150.0,0.0004323,2]
[342771466,1732131059219,-150.0,0.0004323,7]
[342771467,1732131059228,-150.0,0.00043234,2]
[342771468,1732131059238,-150.0,0.00043236,2]
[342771469,1732131059247,-150.0,0.00043238,2]
[342771470,1732131059258,-150.0,0.0004324,7]
[342771471,1732131059268,-150.0,0.00043253,2]
[342771472,1732131059277,-150.0,0.00043259,2]
[342771473,1732131059287,-150.0,0.00043266,7]
[342771474,1732131059296,-150.0,0.00043268,2]
[342771475,1732131059306,-1500.0,0.00043278,7]
[342771476,1732131059316,-150.0,0.0004328,2]
[342771477,1732131059327,-150.0,0.0004328,7]
[342771478,1732131059337,-150.0,0.00043283,7]
[342771479,1732131059347,-150.0,0.00043291,2]
[342771480,1732131059356,-150.0,0.00043292,2]
[342771481,1732131059366,-150.0,0.00043294,2]
[342771482,1732131059376,-100000.0,0.000433,120]
[342771483,1732131059386,-150.0,0.00043301,2]
[342771484,1732131059395,-150.0,0.00043308,2]
[342771485,1732131059405,-150.0,0.00043311,2]
[342771486,1732131059414,-150.0,0.00043311,7]
[342771487,1732131059423,-150.0,0.00043312,2]
[342771488,1732131059433,-150.0,0.00043316,2]
[342771489,1732131059443,-150.0,0.0004332,2]
[342771490,1732131059452,-150.0,0.00043323,2]
[342771491,1732131059461,-1500.0,0.00043324,7]
[342771492,1732131059470,-150.0,0.00043327,2]
[342771493,1732131059481,-150.0,0.00043329,2]
[342771494,1732131059490,-150.0,0.00043331,2]
[342771495,1732131059499,-1500.0,0.00043331,7]
[342771496,1732131059509,-150.0,0.00043337,2]
[342771497,1732131059519,-150.0,0.00043352,2]
[342771498,1732131059529,-150.0,0.00043362,2]
[342771499,1732131059538,-150.0,0.00043363,2]
[342771500,1732131059548,-1629.33,0.00043364,2]
[342771501,1732131059557,-150.0,0.00043367,2]
[342771502,1732131059567,-150.0,0.00043379,2]
[342771503,1732131059581,-2500.0,0.00043386,60]
[342771504,1732131059590,-1300.0,0.00043386,60]
[342771505,1732131059600,-1500.0,0.00043386,60]
[342771506,1732131059609,-500.0,0.00043386,60]
[342771507,1732131059619,-1500.0,0.00043392,7]
[342771508,1732131059628,-1500.0,0.00043396,7]
[342771509,1732131059638,-150.0,0.00043399,2]
[342771510,1732131059647,-1500.0,0.00043399,7]
[342771511,1732131059657,-150.0,0.00043401,2]
[342771512,1732131059666,-150.0,0.00043402,2]
[342771513,1732131059676,-150.0,0.00043404,2]
[342771514,1732131059685,-150.0,0.00043411,2]
[342771515,1732131059695,-150.0,0.00043414,2]
[342771516,1732131059706,-1500.0,0.00043423,7]
[342771517,1732131059715,-150.0,0.00043424,2]
[342771518,1732131059724,-300.0,0.00043426,7]
[342771519,1732131059733,-150.0,0.00043441,2]
[342771520,1732131059744,-150.0,0.00043458,7]
[342771521,1732131059753,-150.0,0.0004346,7]
[342771522,1732131059763,-150.0,0.00043463,2]
[342771523,1732131059772,-150.0,0.00043464,2]
[342771524,1732131059781,-150.0,0.00043467,2]
[342771525,1732131059791,-150.0,0.00043472,7]
[342771526,1732131059800,-182.66044134,0.0004348,7]
[342771527,1732131059810,-150.0,0.00043486,2]
[342771528,1732131059822,-150.0,0.00043489,2]
[342771529,1732131059832,-150.0,0.00043498,2]
[342771530,1732131059842,-1777.5572461,0.000435,2]
[342771531,1732131059851,-150.0,0.00043504,7]
[342771532,1732131059861,-150.0,0.00043524,2]
[342771533,1732131059871,-150.0,0.00043525,2]
[342771534,1732131059880,-1500.0,0.00043528,7]
[342771535,1732131059889,-150.0,0.00043529,2]
[342771536,1732131059899,-150.0,0.00043529,2]
[342771537,1732131059908,-150.0,0.00043546,2]
[342771538,1732131059918,-150.0,0.0004355,2]
[342771539,1732131059928,-150.0,0.00043552,7]
[342771540,1732131059938,-150.0,0.00043553,2]
[342771541,1732131059948,-1500.0,0.00043561,7]
[342771542,1732131059958,-150.0,0.00043566,2]
[342771543,1732131059968,-150.0,0.00043571,2]
[342771544,1732131059977,-150.0,0.00043573,2]
[342771545,1732131059987,-968.98,0.00043576,30]
[342771546,1732131059997,-968.98,0.00043576,30]
[342771547,1732131060006,-968.67,0.00043577,30]
[342771548,1732131060016,-150.0,0.00043583,2]
[342771549,1732131060026,-150.0,0.00043591,2]
[342771550,1732131060036,-150.0,0.00043594,2]
[342771551,1732131060047,-150.0,0.00043603,2]
[342771552,1732131060057,-1500.0,0.00043607,7]
[342771553,1732131060067,-150.0,0.0004361,2]
[342771554,1732131060083,-150.0,0.00043617,2]
[342771555,1732131060094,-150.0,0.00043618,2]
[342771556,1732131060104,-150.0,0.0004362,2]
[342771557,1732131060114,-150.0,0.00043637,2]
[342771558,1732131060126,-1500.0,0.00043637,7]
[342771559,1732131060136,-150.0,0.00043639,2]
[342771560,1732131060146,-150.0,0.00043639,2]
[342771561,1732131060157,-1500.0,0.00043648,7]
[342771562,1732131060167,-1500.0,0.00043648,7]
[342771563,1732131060177,-150.0,0.00043661,2]
[342771564,1732131060187,-150.0,0.00043662,2]
[342771565,1732131060196,-168.16163064,0.00043666,2]
[342771566,1732131060206,-549.36500078,0.00043668,7]
[342771567,1732131060215,-150.0,0.00043679,2]
[342771568,1732131060224,-1500.0,0.0004368,7]
[342771569,1732131060233,-1500.0,0.0004368,7]
[342771570,1732131060243,-150.0,0.00043683,2]
[342771571,1732131060253,-150.0,0.00043687,2]
[342771572,1732131060263,-150.0,0.00043689,2]
[342771573,1732131060272,-150.0,0.00043689,7]
[342771574,1732131060282,-150.0,0.00043692,7]
[342771575,1732131060292,-1500.0,0.00043706,7]
[342771576,1732131060302,-1500.0,0.00043712,7]
[342771577,1732131060311,-150.0,0.00043713,2]
[342771578,1732131060323,-150.0,0.00043717,2]
[342771579,1732131060336,-150.0,0.00043717,2]
[342771580,1732131060346,-150.0,0.0004372,2]
[342771581,1732131060355,-150.0,0.00043724,2]
[342771582,1732131060365,-150.0,0.00043729,2]
[342771583,1732131060375,-150.0,0.00043734,2]
[342771584,1732131060385,-150.0,0.00043737,2]
[342771585,1732131060395,-150.0,0.0004374,2]
[342771586,1732131060405,-1500.0,0.00043741,7]
[342771587,1732131060415,-1500.0,0.00043748,7]
[342771588,1732131060425,-1500.0,0.00043759,7]
[342771589,1732131060435,-1500.0,0.00043764,7]
[342771590,1732131060445,-150.0,0.0004377,2]
[342771591,1732131060456,-1000.0,0.00043774,7]
[342771592,1732131060466,-150.0,0.00043776,2]
[342771593,1732131060477,-150.0,0.00043787,2]
[342771594,1732131060487,-150.0,0.00043795,7]
[342771595,1732131060498,-520.00967498,0.000438,120]
[342771596,1732131060507,-1952.5333,0.000438,2]
[342771597,1732131060517,-520.2125,0.000438,2]
[342771598,1732131060527,-3272.3542,0.000438,2]
[342771599,1732131060537,-5085.6344,0.000438,2]
[342771600,1732131060547,-150.0,0.00043824,7]
[342771601,1732131060556,-12578.51,0.00043824,6]
[342771602,1732131060567,-4219.49,0.00043824,6]
[342771603,1732131060580,-6647.75674982,0.00043835,14]
[342771604,1732131060589,-600.0,0.00043836,10]
[342771605,1732131060599,-600.0,0.00043836,10]
[342771606,1732131060608,-600.0,0.00043836,10]
[342771607,1732131060618,-600.0,0.00043836,10]
[342771608,1732131060628,-600.0,0.00043836,10]
[342771609,1732131060637,-600.0,0.00043836,10]
[342771610,1732131060647,-600.0,0.00043836,10]
[342771611,1732131060656,-600.0,0.00043836,10]
[342771612,1732131060666,-600.0,0.00043836,10]
[342771613,1732131060675,-600.0,0.00043836,10]
[342771614,1732131060685,-600.0,0.00043836,10]
[342771615,1732131060695,-600.0,0.00043836,10]
[342771616,1732131060704,-600.0,0.00043836,10]
[342771617,1732131060714,-600.0,0.00043836,10]
[342771618,1732131060723,-600.0,0.00043836,10]
[342771619,1732131060733,-600.0,0.00043836,10]
[342771620,1732131060742,-600.0,0.00043836,10]
[342771621,1732131060752,-600.0,0.00043836,10]
[342771622,1732131060762,-600.0,0.00043836,10]
[342771623,1732131060772,-600.0,0.00043836,10]
[342771624,1732131060781,-3822.9754654,0.0004387,2]
[342771625,1732131060791,-986.9659957,0.0004387,2]
[342771626,1732131060800,-10000.0,0.000439,120]
[342771627,1732131060809,-10000.0,0.000439,120]
[342771628,1732131060819,-10000.0,0.000439,120]
[342771629,1732131060831,-2500.0,0.00043934,120]
[342771630,1732131060840,-1300.0,0.00043934,120]
[342771631,1732131060849,-1500.0,0.00043934,120]
[342771632,1732131060859,-50000.0,0.00044,24]
[342771633,1732131060869,-400.0,0.00044,120]
[342771634,1732131060879,-90893.76668899,0.00044,30]
[342771635,1732131060888,-11194.78143903,0.00044,30]
[342771636,1732131060897,-294.15029153,0.00044,31]
[342771637,1732131060907,-10048.65941889,0.00044,120]
[342771638,1732131060916,-508.078566,0.00044,57]
[342771639,1732131060926,-968.98,0.00044041,30]